fUSD/lending_fUSD_20240530
["ID","MTS","AMOUNT","RATE_DAILY","PERIOD"]
[328213062,1717063843806,-500.0,0.00029129,7]
[328213063,1717063843816,-500.0,0.00029129,7]
[328213064,1717063843826,-500.0,0.00029129,7]
[328213065,1717063843836,-517.98243808,0.00029129,7]
[328213066,1717063843846,-526.01603339,0.00029129,7]
[328213067,1717063843857,-518.99814357,0.00029129,7]
[328213068,1717063843867,-532.80773802,0.00029129,7]
[328213069,1717063843877,-500.0,0.00029129,7]
[328213070,1717063843889,-554.33882119,0.00029129,7]
[328213071,1717063843901,-54.65567262,0.00029129,7]
[328213072,1717063843914,-445.34432738,0.00029129,7]
[328213073,1717063843925,-500.0,0.00029129,7]
[328213074,1717063843937,-173.3540168,0.00029129,7]
[328213075,1717063843947,-500.0,0.00029129,7]
[328213076,1717063843958,-500.0,0.00029129,7]
[328213077,1717063843968,-500.0,0.00029129,7]
[328213078,1717063843978,-527.4025217,0.00029129,7]
[328213079,1717063843988,-500.0,0.00029129,7]
[328213080,1717063843998,-500.0,0.00029129,7]
[328213081,1717063844008,-500.0,0.00029129,7]
[328213082,1717063844018,-408.77658917,0.00029129,7]
[328213083,1717063844035,-91.22341083,0.00029129,7]
[328213084,1717063844045,-361.3296852,0.00029129,7]
[328213085,1717063844056,-324.81987304,0.00029129,7]
[328213086,1717063844065,-500.0,0.00029129,7]
[328213087,1717063844075,-500.0,0.00029129,7]
[328213088,1717063844085,-500.0,0.00029129,7]
[328213089,1717063844095,-324.58293704,0.00029129,7]
[328213115,1717063846326,-500.0,0.00029127,7]
[328213116,1717063846336,-500.0,0.00029128,7]
[328213117,1717063846346,-175.41706296,0.00029129,7]
[328213118,1717063846355,-500.0,0.00029129,7]
[328213120,1717063846364,-3000.0,0.00029129,2]
[328213121,1717063846373,-274364.42256849,0.0002913,13]
[328213123,1717063846382,-94470.92735923,0.0002913,10]
[328213130,1717063846496,-550.02950705,0.0002913,10]
[328213131,1717063846509,-109907.1804294,0.0002913,10]
[328213132,1717063846522,-51163.51795178,0.0002913,10]
[328213133,1717063846665,-500.0,0.00029127,7]
[328213134,1717063846677,-628.74502416,0.0002913,10]
[328213135,1717063846690,-747.40697802,0.0002913,10]
[328213136,1717063846701,-505.14,0.0002913,10]
[328213137,1717063846713,-292.064,0.0002913,10]
[328213152,1717064020046,500.0,0.00013973,2]
[328213153,1717064020472,500.0,0.00013973,2]
[328213154,1717064020906,500.0,0.00013973,2]
[328213155,1717064021389,567.0,0.00013973,2]
[328213156,1717064087508,154.89,0.00013973,2]
[328213164,1717064633042,155.91,0.00013973,2]
[328213171,1717064867124,1053.19,0.00033,90]
[328213187,1717065032548,-150.0,0.00019725,2]
[328213189,1717065032557,-254.42,0.00025524,2]
[328213191,1717065032567,-531.57632994,0.00026314,2]
[328213194,1717065032578,-624.11217006,0.00026314,2]
[328213196,1717065032587,-640.0,0.00027385,2]
[328213197,1717065032596,-499.99,0.00027385,2]
[328213198,1717065032605,-241.99,0.00027402,2]
[328213199,1717065032615,-250.0,0.00027405,2]
[328213200,1717065032624,-766.18,0.00027461,2]
[328213201,1717065032633,-3052.1,0.00027464,2]
[328213202,1717065032642,-250.0,0.0002761,2]
[328213203,1717065032652,-313.9335661,0.00027672,7]
[328213204,1717065032661,-1703.96,0.00027732,2]
[328213205,1717065032670,-161.55,0.00027753,2]
[328213206,1717065032679,-254.42,0.00027788,2]
[328213207,1717065032688,-161.55,0.00027933,2]
[328213208,1717065032698,-512.0,0.00028,2]
[328213209,1717065032707,-161.55,0.00028114,2]
[328213210,1717065032716,-161.55,0.00028295,2]
[328213211,1717065032725,-161.55,0.00028476,2]
[328213212,1717065032734,-161.55,0.00028656,2]
[328213213,1717065032743,-3272.00641499,0.00028786,2]
[328213214,1717065032752,-161.55,0.00028837,2]
[328213215,1717065032762,-1055.92688,0.0002884,2]
[328213216,1717065032771,-421.62,0.00028898,2]
[328213217,1717065032780,-161.55,0.00029018,2]
[328213218,1717065032790,-881.9208,0.00029028,2]
[328213219,1717065032799,-1000.0,0.0002903,2]
[328213220,1717065032808,-3509.49499167,0.0002903,2]
[328213221,1717065032820,-3990.50500833,0.0002903,2]
[328213222,1717065032829,-1290.36835337,0.0002903,2]
[328213223,1717065032838,-3705.0465276,0.0002903,2]
[328213224,1717065032847,-325.5164908,0.0002903,2]
[328213225,1717065032856,-283.0674,0.0002903,2]
[328213226,1717065032867,-150.0,0.00029047,2]
[328213227,1717065032877,-7183.39321798,0.00029071,2]
[328213228,1717065032886,-282.55116964,0.00029071,2]
[328213229,1717065032895,-1674.34684214,0.000291,2]
[328213231,1717065032907,-797.37400748,0.000291,2]
[328213233,1717065032918,-819.28,0.000291,2]
[328213235,1717065032929,-2019.82910701,0.000291,2]
[328213237,1717065032938,-6123.7074317,0.00029119,2]
[328213239,1717065032946,-1334.3332087,0.00029119,2]
[328213241,1717065032956,-150.71,0.0002912,2]
[328213243,1717065032965,-150.71,0.0002912,2]
[328213244,1717065032974,-150.71,0.0002912,2]
[328213245,1717065032983,-150.71,0.0002912,2]
[328213246,1717065032992,-150.71,0.0002912,2]
[328213247,1717065033002,-807.68750229,0.00029126,2]
[328213248,1717065033011,-155.37709862,0.00029126,2]
[328213249,1717065033020,-157.80898856,0.00029126,2]
[328213250,1717065033029,-500.0,0.00029127,7]
[328213251,1717065033038,-500.0,0.00029127,7]
[328213253,1717065033047,-500.0,0.00029127,7]
[328213255,1717065033056,-500.0,0.00029127,7]
[328213257,1717065033065,-523.31725146,0.00029127,7]
[328213259,1717065033075,-500.0,0.00029127,7]
[328213261,1717065033084,-500.0,0.00029127,7]
[328213263,1717065033093,-500.0,0.00029127,7]
[328213265,1717065033103,-425.86074948,0.00029127,7]
[328213267,1717065033112,-500.0,0.00029127,7]
[328213269,1717065033121,-545.83445514,0.00029128,2]
[328213271,1717065033130,-656.21528318,0.00029129,2]
[328213273,1717065033139,-2287.12440494,0.00029129,2]
[328213275,1717065033148,-500.0,0.00029129,7]
[328213277,1717065033158,-500.0,0.00029129,7]
[328213279,1717065033167,-500.0,0.00029129,7]
[328213281,1717065033177,-507.51903594,0.00029129,7]
[328213283,1717065033187,-500.0,0.00029129,7]
[328213285,1717065033198,-500.0,0.00029129,7]
[328213287,1717065033211,-500.0,0.00029129,7]
[328213289,1717065033221,-500.0,0.00029129,7]
[328213291,1717065033230,-500.0,0.00029129,7]
[328213293,1717065033240,-500.0,0.00029129,7]
[328213295,1717065033250,-500.0,0.00029129,7]
[328213297,1717065033259,-517.85,0.00029129,7]
[328213299,1717065033268,-500.0,0.00029129,7]
[328213301,1717065033280,-530.48875566,0.00029129,7]
[328213303,1717065033289,-500.0,0.00029129,7]
[328213305,1717065033298,-500.0,0.00029129,7]
[328213307,1717065033306,-500.0,0.00029129,7]
[328213309,1717065033315,-500.0,0.00029129,7]
[328213311,1717065033325,-500.0,0.00029129,7]
[328213313,1717065033334,-564.54,0.00029129,7]
[328213315,1717065033343,-500.0,0.00029129,7]
[328213317,1717065033352,-500.0,0.00029129,7]
[328213319,1717065033362,-500.0,0.00029129,7]
[328213321,1717065033371,-500.0,0.00029129,7]
[328213323,1717065033381,-500.0,0.00029129,7]
[328213325,1717065033390,-500.0,0.00029129,7]
[328213327,1717065033399,-500.0,0.00029129,7]
[328213329,1717065033408,-448.91417796,0.00029129,7]
[328213331,1717065033417,-500.0,0.00029129,7]
[328213333,1717065033426,-500.0,0.00029129,7]
[328213335,1717065033435,-500.0,0.00029129,2]
[328213337,1717065033444,-500.0,0.00029129,7]
[328213339,1717065033454,-500.0,0.00029129,7]
[328213341,1717065033463,-500.0,0.00029129,7]
[328213343,1717065033471,-500.0,0.00029129,7]
[328213345,1717065033480,-609.72,0.00029129,7]
[328213347,1717065033491,-500.0,0.00029129,7]
[328213349,1717065033500,-500.0,0.00029129,7]
[328213351,1717065033509,-500.0,0.00029129,7]
[328213353,1717065033518,-500.0,0.00029129,7]
[328213355,1717065033527,-393.88601748,0.00029129,7]
[328213357,1717065033536,-500.0,0.00029129,7]
[328213359,1717065033545,-500.0,0.00029129,7]
[328213361,1717065033554,-500.0,0.00029129,7]
[328213363,1717065033563,-500.0,0.00029129,7]
[328213365,1717065033572,-500.0,0.00029129,7]
[328213367,1717065033581,-500.0,0.00029129,7]
[328213369,1717065033590,-500.0,0.00029129,7]
[328213371,1717065033599,-500.0,0.00029129,7]
[328213373,1717065033609,-150.0,0.00029129,7]
[328213375,1717065033619,-500.0,0.00029129,7]
[328213377,1717065033628,-500.0,0.00029129,7]
[328213379,1717065033637,-500.0,0.00029129,7]
[328213381,1717065033647,-500.0,0.00029129,7]
[328213383,1717065033656,-500.0,0.00029129,7]
[328213385,1717065033665,-500.0,0.00029129,7]
[328213387,1717065033674,-500.0,0.00029129,7]
[328213389,1717065033684,-598.34,0.00029129,7]
[328213391,1717065033694,-2106.16,0.00029129,7]
[328213392,1717065033704,-500.0,0.00029129,7]
[328213394,1717065033712,-500.0,0.00029129,7]
[328213396,1717065033722,-615.61,0.00029129,7]
[328213399,1717065033732,-500.0,0.00029129,7]
[328213401,1717065033742,-630.91,0.00029129,7]
[328213403,1717065033752,-500.0,0.00029129,7]
[328213405,1717065033762,-265.73993267,0.00029129,7]
[328213407,1717065033772,-507.55,0.00029129,7]
[328213408,1717065033782,-500.0,0.00029129,7]
[328213410,1717065033792,-500.0,0.00029129,7]
[328213412,1717065033802,-500.0,0.00029129,7]
[328213413,1717065033811,-600.74,0.00029129,7]
[328213414,1717065033821,-500.0,0.00029129,7]
[328213415,1717065033831,-931.11,0.00029129,7]
[328213416,1717065033840,-500.0,0.00029129,7]
[328213417,1717065033851,-500.0,0.00029129,7]
[328213418,1717065033863,-500.0,0.00029129,7]
[328213419,1717065033872,-500.0,0.00029129,7]
[328213420,1717065033882,-500.0,0.00029129,7]
[328213421,1717065033891,-500.0,0.00029129,7]
[328213422,1717065033900,-500.0,0.00029129,7]
[328213423,1717065033909,-500.0,0.00029129,7]
[328213424,1717065033918,-500.0,0.00029129,7]
[328213425,1717065033928,-500.0,0.00029129,7]
[328213426,1717065033937,-905.66,0.00029129,7]
[328213427,1717065033946,-607.11,0.00029129,7]
[328213428,1717065033955,-500.0,0.00029129,7]
[328213429,1717065033964,-500.0,0.00029129,7]
[328213430,1717065033974,-562.30416277,0.00029129,7]
[328213431,1717065033983,-500.0,0.00029129,7]
[328213432,1717065033992,-883.16,0.00029129,7]
[328213433,1717065034002,-500.0,0.00029129,7]
[328213434,1717065034011,-500.0,0.00029129,7]
[328213435,1717065034021,-500.0,0.00029129,7]
[328213436,1717065034030,-1083.21,0.00029129,7]
[328213437,1717065034040,-500.0,0.00029129,7]
[328213438,1717065034049,-500.0,0.00029129,7]
[328213439,1717065034059,-500.0,0.00029129,7]
[328213440,1717065034068,-500.0,0.00029129,7]
[328213441,1717065034250,-616.85,0.00029129,7]
[328213442,1717065034260,-617.74,0.00029129,7]
[328213443,1717065034269,-500.0,0.00029129,7]
[328213444,1717065034280,-500.0,0.00029129,7]
[328213445,1717065034289,-1040.25,0.00029129,7]
[328213446,1717065034298,-500.0,0.00029129,7]
[328213447,1717065034308,-500.0,0.00029129,2]
[328213448,1717065034317,-500.0,0.00029129,7]
[328213449,1717065034327,-500.0,0.00029129,7]
[328213450,1717065034336,-500.0,0.00029129,7]
[328213451,1717065034347,-500.0,0.00029129,7]
[328213452,1717065034356,-500.0,0.00029129,7]
[328213453,1717065034367,-500.0,0.00029129,7]
[328213454,1717065034376,-500.0,0.00029129,7]
[328213455,1717065034385,-577.41,0.00029129,7]
[328213456,1717065034394,-500.0,0.00029129,7]
[328213457,1717065034403,-500.0,0.00029129,7]
[328213458,1717065034412,-526.64,0.00029129,7]
[328213459,1717065034423,-223.31284658,0.00029129,7]
[328213460,1717065034433,-1207.59,0.00029129,5]
[328213461,1717065034444,-500.0,0.00029129,7]
[328213462,1717065034455,-500.0,0.00029129,7]
[328213463,1717065034464,-500.0,0.00029129,7]
[328213464,1717065034474,-500.0,0.00029129,7]
[328213465,1717065034483,-500.0,0.00029129,7]
[328213466,1717065034492,-500.0,0.00029129,7]
[328213467,1717065034501,-500.0,0.00029129,7]
[328213468,1717065034510,-500.0,0.00029129,7]
[328213469,1717065034519,-500.0,0.00029129,7]
[328213470,1717065034528,-500.0,0.00029129,7]
[328213471,1717065034537,-500.0,0.00029129,7]
[328213472,1717065034547,-500.0,0.00029129,7]
[328213473,1717065034557,-500.0,0.00029129,7]
[328213474,1717065034566,-500.0,0.00029129,7]
[328213475,1717065034575,-1398.21,0.00029129,7]
[328213476,1717065034585,-500.0,0.00029129,7]
[328213477,1717065034594,-500.0,0.00029129,7]
[328213478,1717065034603,-500.0,0.00029129,7]
[328213479,1717065034614,-500.0,0.00029129,7]
[328213480,1717065034623,-471.62405313,0.00029129,7]
[328213481,1717065034632,-500.0,0.00029129,7]
[328213482,1717065034642,-500.0,0.00029129,7]
[328213483,1717065034651,-500.0,0.00029129,7]
[328213484,1717065034660,-500.0,0.00029129,7]
[328213485,1717065034670,-500.0,0.00029129,7]
[328213486,1717065034679,-579.37948338,0.00029129,7]
[328213487,1717065034689,-500.0,0.00029129,7]
[328213488,1717065034699,-500.0,0.00029129,7]
[328213489,1717065034708,-500.0,0.00029129,7]
[328213490,1717065034718,-500.0,0.00029129,7]
[328213491,1717065034727,-500.0,0.00029129,7]
[328213492,1717065034735,-500.0,0.00029129,7]
[328213493,1717065034745,-500.0,0.00029129,2]
[328213494,1717065034755,-500.0,0.00029129,7]
[328213495,1717065034764,-500.0,0.00029129,7]
[328213496,1717065034773,-500.0,0.00029129,7]
[328213497,1717065034782,-500.0,0.00029129,7]
[328213498,1717065034793,-500.0,0.00029129,7]
[328213499,1717065034802,-500.0,0.00029129,7]
[328213500,1717065034811,-500.0,0.00029129,7]
[328213501,1717065034820,-500.0,0.00029129,7]
[328213502,1717065034829,-724.36027854,0.00029129,7]
[328213503,1717065034856,-154.72972146,0.00029129,7]
[328213504,1717065034867,-500.0,0.00029129,7]
[328213505,1717065034876,-500.0,0.00029129,7]
[328213506,1717065034886,-500.0,0.00029129,7]
[328213507,1717065034895,-500.0,0.00029129,7]
[328213508,1717065034905,-500.0,0.00029129,7]
[328213509,1717065034914,-500.0,0.00029129,7]
[328213510,1717065034924,-500.0,0.00029129,7]
[328213511,1717065034933,-500.0,0.00029129,7]
[328213512,1717065034942,-500.0,0.00029129,7]
[328213513,1717065034951,-500.0,0.00029129,7]
[328213514,1717065034960,-500.0,0.00029129,7]
[328213515,1717065034970,-218.80388276,0.00029129,7]
[328213516,1717065034979,-974.4136474,0.0002913,13]
[328213517,1717065034990,-7552.99627616,0.0002913,13]
[328213518,1717065035001,-463.05,0.0002913,13]
[328213519,1717065035012,-676.21321832,0.0002913,13]
[328213520,1717065035023,-533.85026905,0.0002913,13]
[328213521,1717065035034,-467.45691708,0.0002913,13]
[328213522,1717065035046,-1363.36847576,0.0002913,13]
[328213523,1717065035057,-4631.34297496,0.0002913,13]
[328213524,1717065035068,-7978.27209133,0.0002913,13]
[328213525,1717065035099,-816.22383766,0.00029071,2]
[328213526,1717065035109,-190.93208018,0.0002913,13]
[328213527,1717065035120,-703.37788318,0.0002913,13]
[328213528,1717065035132,-421.94944597,0.0002913,13]
[328213529,1717065035143,-291.826501,0.0002913,13]
[328213530,1717065038397,-310.01881642,0.00029071,2]
[328213533,1717065038406,-500.0,0.00029129,7]
[328213534,1717065038415,-500.0,0.00029129,7]
[328213535,1717065038424,-115.92565592,0.0002913,13]
[328213537,1717065038563,-10000.0483632,0.0002913,13]
[328213538,1717065038574,-428.61941707,0.0002913,13]
[328213539,1717065038586,-1220.20775906,0.0002913,13]
[328213540,1717065038597,-406.46916604,0.0002913,13]
[328213541,1717065038769,-804.88887239,0.0002913,13]
[328213542,1717065038781,-2299.80845602,0.0002913,13]
[328213543,1717065038792,-580.78844532,0.0002913,13]
[328213544,1717065038804,-692.79472096,0.0002913,13]
[328213545,1717065038815,-1599.50354593,0.0002913,13]
[328213546,1717065038826,-16934.04267543,0.0002913,13]
[328213561,1717065042745,-500.0,0.00029129,7]
[328213562,1717065042754,-500.0,0.00029129,7]
[328213563,1717065042763,-805.26599995,0.0002913,13]
[328213564,1717065042775,-451.9375,0.0002913,13]
[328213565,1717065042785,-542.84209629,0.0002913,13]
[328213566,1717065042796,-10688.81959804,0.0002913,13]
[328213567,1717065042941,-746.54000001,0.0002913,13]
[328213568,1717065042952,-22873.50831123,0.0002913,13]
[328213569,1717065042963,-405.50991921,0.0002913,13]
[328213570,1717065042974,-8127.6632127,0.0002913,13]
[328213599,1717065043677,-67023.97094319,0.0002913,13]
[328213602,1717065043688,-3003.07740914,0.0002913,13]
[328213604,1717065043698,-4040.4688399,0.0002913,13]
[328213606,1717065043709,-3294.67904901,0.0002913,13]
[328213608,1717065043865,-5976.31321052,0.0002913,13]
[328213609,1717065043877,-848.40015,0.0002913,13]
[328213610,1717065043888,-1067.81353758,0.0002913,13]
[328213611,1717065043899,-455.24917089,0.0002913,13]
[328213612,1717065044081,-3450.56359384,0.0002913,13]
[328213615,1717065044092,-9214.47023561,0.0002913,13]
[328213617,1717065044103,-4433.464,0.0002913,13]
[328213863,1717065046517,-769.02819339,0.0002913,13]
[328213885,1717065046710,-1499.90008,0.0002913,13]
[328213887,1717065046721,-828.46681849,0.0002913,13]
[328213889,1717065046732,-7110.67508,0.0002913,13]
[328213891,1717065046743,-8500.0,0.0002913,13]
[328213894,1717065046754,-255.637,0.0002913,13]
[328213896,1717065046765,-417.17927942,0.0002913,13]
[328213898,1717065046777,-959.66047797,0.0002913,13]
[328213900,1717065046788,-3150.39333094,0.0002913,13]
[328214218,1717065064143,156.83,0.00029808,30]
[328214223,1717065303932,1420.57121478,0.00033,90]
[328214227,1717065396939,341161.12631287,0.00013,2]
[328214230,1717065547512,25000.0,0.00031,30]
[328214231,1717065607009,993.0,0.00031,30]
[328214232,1717065767982,156.83,0.00029808,30]
[328214246,1717066057185,25000.0,0.00031,30]
[328214247,1717066101931,25000.0,0.00031,30]
[328214248,1717066145591,25000.0,0.00031,30]
[328214263,1717066234623,-1290.87747307,0.00017257,2]
[328214264,1717066234634,-931.355696,0.00017258,2]
[328214265,1717066234644,-575.63967207,0.00017258,2]
[328214266,1717066234654,-2727.49606795,0.00017259,2]
[328214267,1717066234665,-438.97877864,0.00017259,2]
[328214268,1717066234676,-949.31243769,0.00017259,2]
[328214269,1717066234685,-150.0,0.00017807,2]
[328214270,1717066234695,-150.99,0.00019726,2]
[328214271,1717066234704,-150.99,0.00019726,2]
[328214272,1717066234714,-245.81500887,0.00025303,2]
[328214273,1717066234834,-7.67499113,0.00025303,2]
[328214276,1717066234844,-251.37928582,0.00026215,2]
[328214278,1717066234853,-259.36525548,0.00027039,2]
[328214280,1717066234865,-134.22474452,0.00027039,2]
[328214282,1717066234874,-583.9,0.00027044,2]
[328214284,1717066234884,-250.0,0.00027044,2]
[328214286,1717066234893,-150.0,0.00027148,2]
[328214288,1717066234902,-250.0,0.00027175,2]
[328214290,1717066234912,-2318.96,0.00027221,2]
[328214292,1717066234921,-510.11,0.0002725,2]
[328214293,1717066234930,-1861.67,0.00027366,2]
[328214294,1717066234940,-512.0,0.00027451,2]
[328214295,1717066234951,-158.52,0.00027473,2]
[328214296,1717066234961,-150.0,0.00027476,2]
[328214297,1717066234970,-253.49,0.00027567,2]
[328214298,1717066234981,-460.54321371,0.00027671,7]
[328214299,1717066234991,-158.52,0.00027711,2]
[328214300,1717066235000,-150.0,0.00027787,2]
[328214301,1717066235009,-158.52,0.0002795,2]
[328214302,1717066235019,-1577.0,0.00028,2]
[328214303,1717066235028,-150.0,0.00028164,2]
[328214304,1717066235039,-158.52,0.00028188,2]
[328214305,1717066235056,-1000.0,0.0002823,3]
[328214306,1717066235070,-158.52,0.00028427,2]
[328214307,1717066235080,-314.71743852,0.00028637,2]
[328214308,1717066235089,-158.52,0.00028666,2]
[328214309,1717066235099,-150.0,0.00028821,2]
[328214310,1717066235109,-150.0,0.00028823,2]
[328214311,1717066235118,-1000.0,0.0002883,3]
[328214312,1717066235126,-156.18366249,0.00028837,2]
[328214313,1717066235137,-2817.3675,0.0002884,2]
[328214314,1717066235146,-150.0,0.00028845,2]
[328214315,1717066235155,-158.52,0.00028904,2]
[328214316,1717066235165,-4685.958675,0.00029,2]
[328214317,1717066235175,-1283.26323051,0.0002902,2]
[328214318,1717066235184,-3334.54187484,0.00029028,2]
[328214319,1717066235193,-639.24529702,0.0002903,2]
[328214320,1717066235384,-3001.13681457,0.0002903,2]
[328214321,1717066235396,-2132.0,0.0002903,2]
[328214322,1717066235407,-7451.58858841,0.0002903,2]
[328214323,1717066235417,-6815.2959,0.0002903,2]
[328214324,1717066235426,-7500.0,0.0002903,2]
[328214325,1717066235435,-5353.92194007,0.0002903,2]
[328214326,1717066235444,-579.52489556,0.0002903,2]
[328214327,1717066235453,-325.71586668,0.0002903,2]
[328214328,1717066235464,-5081.12778686,0.0002903,2]
[328214329,1717066235473,-248.1438063,0.00029051,2]
[328214330,1717066235482,-500.0,0.00029116,7]
[328214331,1717066235492,-500.0,0.00029116,7]
[328214332,1717066235501,-500.0,0.00029116,7]
[328214333,1717066235511,-500.0,0.00029116,7]
[328214334,1717066235521,-500.0,0.00029116,7]
[328214335,1717066235530,-1339.95,0.00029116,7]
[328214336,1717066235540,-500.0,0.00029116,7]
[328214337,1717066235549,-500.0,0.00029116,7]
[328214338,1717066235558,-20976.295086,0.00029117,2]
[328214339,1717066235567,-17906.93611512,0.00029117,2]
[328214344,1717066237772,-1000.0,0.0002898,4]
[328214345,1717066237782,-188.36744644,0.0002903,2]
[328214346,1717066237792,-500.0,0.00029116,7]
[328214347,1717066237801,-2030.32552491,0.00029117,2]
[328214348,1717066237814,-1917.73287074,0.00029117,2]
[328214349,1717066237825,-1064.14578151,0.00029117,2]
[328214350,1717066237837,-5641.70032621,0.00029117,2]
[328214351,1717066237848,-18877.35329942,0.00029117,2]
[328214353,1717066238163,-39773.6977575,0.00029117,2]
[328214354,1717066238174,-54695.48472226,0.00029117,2]
[328214355,1717066238185,-710.733,0.00029117,2]
[328214356,1717066238197,-10518.00550763,0.00029117,2]
[328214357,1717066238206,-150.71,0.0002912,2]
[328214358,1717066238216,-150.71,0.0002912,2]
[328214359,1717066238225,-150.71,0.0002912,2]
[328214360,1717066238235,-500.0,0.00029126,7]
[328214361,1717066238245,-500.0,0.00029126,7]
[328214362,1717066238254,-500.0,0.00029126,7]
[328214363,1717066238264,-500.0,0.00029126,7]
[328214364,1717066238273,-500.0,0.00029126,7]
[328214365,1717066238283,-500.0,0.00029126,7]
[328214366,1717066238292,-500.0,0.00029126,7]
[328214367,1717066238301,-759.9738215,0.00029126,7]
[328214368,1717066238329,-257.66813128,0.00029126,7]
[328214369,1717066238340,-20.43804722,0.00029126,7]
[328214370,1717066238350,-500.0,0.00029126,7]
[328214371,1717066238359,-664.6,0.00029126,7]
[328214372,1717066238368,-592.0,0.00029126,7]
[328214373,1717066238378,-504.7,0.00029126,7]
[328214374,1717066238387,-500.0,0.00029126,7]
[328214375,1717066238396,-500.0,0.00029126,7]
[328214376,1717066238405,-500.0,0.00029126,7]
[328214377,1717066238415,-500.0,0.00029126,7]
[328214378,1717066238424,-500.0,0.00029126,7]
[328214379,1717066238433,-500.0,0.00029126,7]
[328214380,1717066238443,-500.0,0.00029126,7]
[328214381,1717066238452,-500.0,0.00029126,7]
[328214382,1717066238462,-500.0,0.00029126,7]
[328214383,1717066238471,-500.0,0.00029126,7]
[328214384,1717066238481,-842.46,0.00029126,7]
[328214385,1717066238490,-500.0,0.00029126,7]
[328214386,1717066238500,-500.0,0.00029126,7]
[328214387,1717066238509,-500.0,0.00029126,7]
[328214388,1717066238519,-500.0,0.00029126,7]
[328214389,1717066238527,-298.75853827,0.00029126,7]
[328214390,1717066238535,-500.0,0.00029126,7]
[328214391,1717066238544,-150.01,0.00029128,2]
[328214392,1717066238554,-1164.12654072,0.00029128,2]
[328214403,1717066240587,-500.0,0.00029116,7]
[328214404,1717066240597,-500.0,0.00029129,7]
[328214405,1717066240607,-500.0,0.00029129,7]
[328214406,1717066240617,-500.0,0.00029129,7]
[328214407,1717066240626,-500.0,0.00029129,7]
[328214408,1717066240636,-500.0,0.00029129,7]
[328214410,1717066240646,-500.0,0.00029129,7]
[328214411,1717066240658,-500.0,0.00029129,7]
[328214413,1717066240667,-500.0,0.00029129,7]
[328214414,1717066240677,-500.0,0.00029129,7]
[328214415,1717066240686,-500.0,0.00029129,7]
[328214416,1717066240695,-512.20656224,0.00029129,7]
[328214417,1717066240705,-500.0,0.00029129,7]
[328214418,1717066240715,-500.0,0.00029129,7]
[328214419,1717066240724,-589.96,0.00029129,7]
[328214420,1717066240735,-500.0,0.00029129,7]
[328214421,1717066240745,-500.0,0.00029129,7]
[328214422,1717066240756,-500.0,0.00029129,7]
[328214423,1717066240767,-500.0,0.00029129,7]
[328214424,1717066240777,-541.02,0.00029129,7]
[328214425,1717066240786,-500.0,0.00029129,2]
[328214426,1717066240795,-500.0,0.00029129,7]
[328214427,1717066240803,-500.0,0.00029129,7]
[328214428,1717066240812,-500.0,0.00029129,7]
[328214429,1717066240822,-500.0,0.00029129,7]
[328214430,1717066240832,-500.0,0.00029129,7]
[328214431,1717066240841,-500.0,0.00029129,7]
[328214432,1717066240851,-500.0,0.00029129,7]
[328214433,1717066240862,-500.0,0.00029129,7]
[328214434,1717066240872,-500.0,0.00029129,7]
[328214435,1717066240882,-500.0,0.00029129,7]